fUSD/lending_fUSD_20240119
["ID","MTS","AMOUNT","RATE_DAILY","PERIOD"]
[312101039,1705622529406,150.0,0.00021472,2]
[312101040,1705622593844,154.95,0.00020918,2]
[312101041,1705622605004,507.05,0.00018845,2]
[312101042,1705622605358,507.05,0.00021108,2]
[312101043,1705622644327,847.2909,0.00021562,2]
[312101044,1705622652407,1514.5498373,0.00018865,2]
[312101045,1705622652734,1514.5498373,0.00018958,2]
[312101046,1705622653694,1514.5498373,0.00019428,2]
[312101047,1705622653978,1514.5498373,0.00019599,2]
[312101048,1705622654662,1514.5498373,0.00019967,2]
[312101049,1705622654986,1514.5498373,0.00020053,2]
[312101050,1705622655327,1514.5498373,0.00020404,2]
[312101051,1705622655643,1514.5498373,0.00020736,2]
[312101052,1705622656450,1514.5498373,0.00020879,2]
[312101053,1705622656759,1514.5498373,0.000212,2]
[312101054,1705622657112,1514.5498373,0.00021543,2]
[312101055,1705622675193,178.80197068,0.00021561,2]
[312101056,1705622725164,576.05677279,0.00021561,2]
[312101057,1705622743435,1000.0,0.00021561,2]
[312101062,1705622762063,2458.203,0.00021561,2]
[312101063,1705622762380,818.49,0.00020784,2]
[312101064,1705622778299,161.22,0.0002077,2]
[312101065,1705622778548,161.22,0.00021116,2]
[312101066,1705622778796,161.22,0.00021462,2]
[312101067,1705622778882,177.5299,0.00021561,2]
[312101068,1705622782997,1514.5498373,0.00020615,2]
[312101069,1705622783306,1514.5498373,0.00021047,2]
[312101070,1705622783616,1514.5498373,0.00021352,2]
[312101071,1705622783927,1514.5498373,0.00021414,2]
[312101072,1705622806812,1125.13,0.00020771,2]
[312101073,1705622845029,1403.8273,0.00021561,2]
[312101074,1705622847259,166.79,0.00020766,2]
[312101077,1705622936239,150.17,0.00020969,2]
[312101078,1705622936475,150.17,0.00021298,2]
[312101089,1705622964280,362.03928541,0.00021561,2]
[312101095,1705622979616,351.9,0.00020892,2]
[312101096,1705623030702,156.4,0.00020904,2]
[312101103,1705623031775,-150.17,0.00021627,2]
[312101104,1705623031786,-1763.21049556,0.00021629,2]
[312101105,1705623031811,-4.96600911,0.00021629,2]
[312101106,1705623031822,-1514.54983732,0.0002163,2]
[312101108,1705623031833,-728.04659806,0.00021644,2]
[312101110,1705623031848,-1026.39824093,0.00021644,2]
[312101111,1705623031871,-313.04516101,0.00021644,2]
[312101112,1705623031881,-599.62302235,0.00021651,2]
[312101113,1705623031891,-1000.0,0.0002166,2]
[312101114,1705623031901,-150.0,0.0002166,2]
[312101115,1705623031912,-8819.34239012,0.00021661,2]
[312101116,1705623031928,-1886.34881642,0.00021661,2]
[312101117,1705623031942,-954.48806769,0.00021661,2]
[312101118,1705623031959,-430.67499105,0.00021661,2]
[312101119,1705623031971,-497.48514,0.00021661,2]
[312101120,1705623031989,-6907.02225869,0.00021661,2]
[312101121,1705623032002,-3833.28649766,0.00021661,2]
[312101122,1705623032028,-5000.0,0.00021661,2]
[312101123,1705623032042,-1418.84797101,0.00021661,2]
[312101124,1705623032057,-511.06796016,0.00021661,2]
[312101125,1705623032070,-823.70403487,0.00021661,2]
[312101126,1705623032082,-298.82689054,0.00021661,2]
[312101127,1705623032099,-113754.33436449,0.00021661,2]
[312101130,1705623032119,-1179.6499085,0.00021661,2]
[312101134,1705623032146,-1209.88229102,0.00021661,2]
[312101136,1705623032158,-232101.21265681,0.00021661,2]
[312101138,1705623032171,-2289.28608915,0.00021661,2]
[312101140,1705623032183,-974.19748854,0.00021661,2]
[312101148,1705623032253,-641.9811826,0.00021661,2]
[312101150,1705623032265,-55145.65924968,0.00021661,2]
[312101153,1705623032277,-376.86,0.00021661,2]
[312101155,1705623032292,-350.00592856,0.00021661,2]
[312101183,1705623034028,3065.28893654,0.000216,2]
[312101184,1705623034803,483.78,0.0001883,2]
[312101185,1705623035141,483.78,0.00021094,2]
[312101193,1705623037805,-1042.0747437,0.00021661,2]
[312101196,1705623037822,-3923.54468742,0.00021661,2]
[312101198,1705623037868,-309.8372401,0.00021661,2]
[312101201,1705623037883,-657.95859591,0.00021661,2]
[312101204,1705623037903,-24970.4660671,0.00021661,2]
[312101208,1705623037934,-472.47,0.00021661,2]
[312101210,1705623037952,-337.16451685,0.00021661,2]
[312101213,1705623037996,-524.63114475,0.00021661,2]
[312101214,1705623038014,-267.7495191,0.00021661,2]
[312101215,1705623038028,-341.50155484,0.00021661,2]
[312101216,1705623038043,-290.46799996,0.00021661,2]
[312101217,1705623038107,-16374.69804475,0.00021661,2]
[312101218,1705623038130,-3011.3631176,0.00021661,2]
[312101219,1705623038147,-4450.4087247,0.00021661,2]
[312101220,1705623038163,-5816.380635,0.00021661,2]
[312101221,1705623038179,-417.74338871,0.00021661,2]
[312101222,1705623038195,-1457.68753466,0.00021661,2]
[312101223,1705623038222,-544.6798,0.00021661,2]
[312101224,1705623038239,-1125.76649499,0.00021661,2]
[312101225,1705623038255,-6998.6,0.00021661,2]
[312101226,1705623038271,-14164.10403646,0.00021661,2]
[312101231,1705623040357,-453.63950072,0.00021661,2]
[312101232,1705623040373,-1085.28967512,0.00021661,2]
[312101233,1705623040389,-4978.16417335,0.00021661,2]
[312101234,1705623040405,-944.98363872,0.00021661,2]
[312101235,1705623040420,-19492.66895865,0.00021661,2]
[312101236,1705623040476,-1112.6698777,0.00021661,2]
[312101237,1705623040492,-727.84599298,0.00021661,2]
[312101238,1705623040508,-295.80323574,0.00021661,2]
[312101239,1705623041094,-840.97766142,0.00021661,2]
[312101240,1705623041154,-4638.0,0.00021661,2]
[312101254,1705623043242,-1226.49508093,0.00021661,2]
[312101269,1705623043349,-4231.42344435,0.00021661,2]
[312101270,1705623043361,-6549.52796358,0.00021661,2]
[312101271,1705623043372,-4641.37925314,0.00021661,2]
[312101272,1705623043460,-256.81548211,0.00021661,2]
[312101273,1705623043546,-11643.72005396,0.00021661,2]
[312101274,1705623043573,-3127.24215513,0.00021661,2]
[312101275,1705623043585,-4647.43749874,0.00021661,2]
[312101276,1705623043597,-657.62275804,0.00021661,2]
[312101278,1705623045936,-686.336,0.0002166,2]
[312101279,1705623045951,-674.09537674,0.0002166,2]
[312101280,1705623045961,-436.72774261,0.00021661,2]
[312101281,1705623045987,-4567.221464,0.00021661,2]
[312101282,1705623046000,-515.40000015,0.00021661,2]
[312101283,1705623046022,-8450.94127462,0.00021661,2]
[312101284,1705623046084,-343.60980816,0.00021661,2]
[312101285,1705623046149,-20362.12890122,0.00021661,2]
[312101286,1705623046161,-874.86681029,0.00021661,2]
[312101287,1705623046189,-423013.64737825,0.00021661,2]
[312101288,1705623046199,-157.07763095,0.00021661,2]
[312101289,1705623046209,-42610.22215256,0.00021662,2]
[312101290,1705623046244,-2746.1399994,0.00021662,2]
[312101291,1705623046256,-433.2070292,0.00021662,2]
[312101305,1705623050953,167.4,0.0002084,10]
[312101306,1705623063388,152.66418,0.00021444,2]
[312101307,1705623088393,2500.0,0.00021561,2]
[312101308,1705623130003,-150.0,0.00021659,2]
[312101309,1705623130024,-150.0,0.00021659,2]
[312101310,1705623130046,-883.0,0.0002166,2]
[312101312,1705623156077,504.0496762,0.00021561,2]
[312101313,1705623157798,1517.25897323,0.00021584,2]
[312101314,1705623200978,151.40119,0.00021584,3]
[312101315,1705623212799,345.2,0.00020835,2]
[312101316,1705623235763,9110.458,0.0002156,2]
[312101317,1705623249561,151.40119,0.00021584,3]
[312101326,1705623283217,158.15,0.00020834,2]
[312101327,1705623283610,158.15,0.00021281,2]
[312101328,1705623362641,175.73,0.00021018,2]
[312101329,1705623366468,441.04346671,0.0002156,2]
[312101330,1705623385311,250.0,0.00020918,2]
[312101331,1705623389809,150.0,0.00020661,2]
[312101332,1705623391128,150.0,0.00021209,2]
[312101333,1705623392928,1050.12,0.00020839,2]
[312101334,1705623396571,150.0,0.00020661,2]
[312101335,1705623447978,180.52865793,0.00021562,2]
[312101336,1705623484425,250.32275892,0.00021562,2]
[312101337,1705623490308,166.85,0.00020841,2]
[312101338,1705623492320,237.6,0.00020997,2]
[312101339,1705623518498,1500.0,0.0002142,2]
[312101340,1705623518556,1500.0,0.00021456,2]
[312101341,1705623518592,1500.0,0.00021481,2]
[312101342,1705623518624,1500.0,0.00021407,2]
[312101343,1705623518653,1500.0,0.00021487,2]
[312101344,1705623518912,1500.0,0.00021539,2]
[312101345,1705623518949,1500.0,0.00021574,2]
[312101346,1705623527094,1235.49758617,0.00021388,2]
[312101347,1705623535932,487.52,0.00018754,2]
[312101348,1705623536263,487.52,0.00021018,2]
[312101349,1705623564583,1000.0,0.0002156,2]
[312101350,1705623595109,217948.1816,0.0002156,2]
[312101351,1705623643581,150.0,0.00021555,2]
[312101352,1705623643627,150.0,0.00021568,2]
[312101353,1705623643744,150.0,0.00021549,2]
[312101354,1705623643844,150.0,0.00021594,2]
[312101355,1705623643950,150.0,0.00021553,2]
[312101356,1705623644655,150.0,0.00021587,2]
[312101357,1705623644714,150.0,0.0002157,2]
[312101358,1705623644744,150.0,0.00021582,2]
[312101359,1705623644774,150.0,0.00021587,2]
[312101360,1705623644935,150.0,0.00021578,2]
[312101361,1705623644970,150.0,0.00021544,2]
[312101362,1705623645030,150.0,0.00021563,2]
[312101363,1705623645093,150.0,0.00021534,2]
[312101364,1705623645145,150.0,0.00021538,2]
[312101365,1705623645233,150.0,0.0002159,2]
[312101366,1705623645289,150.0,0.00021589,2]
[312101367,1705623645332,150.0,0.00021583,2]
[312101368,1705623660101,150.0,0.00021593,2]
[312101369,1705623660952,150.0,0.00021589,2]
[312101370,1705623661179,150.0,0.0002156,2]
[312101371,1705623661432,150.0,0.00021537,2]
[312101372,1705623661689,150.0,0.00021553,2]
[312101373,1705623661778,300.0,0.00021597,2]
[312101374,1705623661807,553.1567,0.0002156,2]
[312101375,1705623661863,150.0,0.00021565,2]
[312101376,1705623673294,723.84,0.00020655,2]
[312101377,1705623763733,150.0,0.00021586,2]
[312101378,1705623763808,150.0,0.00021516,2]
[312101379,1705623763863,150.0,0.00021561,2]
[312101380,1705623798177,385.91303338,0.0002156,2]
[312101381,1705623809681,1000.0,0.0002156,2]
[312101382,1705623823834,150.0,0.00021523,2]
[312101383,1705623823933,150.0,0.00021573,2]
[312101384,1705623824012,150.0,0.00021578,2]
[312101385,1705623824062,150.0,0.00021597,2]
[312101386,1705623829936,173.83,0.00020651,2]
[312101387,1705623841998,173.14,0.00020879,2]
[312101388,1705623865828,1035.87,0.00020652,2]
[312101389,1705623890080,200.25820712,0.00021562,2]
[312101390,1705623902666,1032.7859,0.0002156,2]
[312101391,1705623905333,100000.0,0.0002156,2]
[312101392,1705623916985,5000.0,0.00021561,2]
[312101393,1705623953348,167.4,0.00020645,10]
[312101394,1705623966190,462.22,0.00018727,2]
[312101395,1705623966545,462.22,0.00020991,2]
[312101396,1705623978917,156.4,0.000208,2]
[312101397,1705623981066,245000.0,0.0002156,2]
[312101398,1705623988859,337.67390419,0.00021561,2]
[312101399,1705624048463,5455.5384,0.0002156,2]
[312101400,1705624051911,397.9294,0.0002156,2]
[312101401,1705624054987,5000.0,0.00021561,2]
[312101402,1705624085421,100000.0,0.0002156,2]
[312101404,1705624170882,156.22454558,0.00021519,2]
[312101405,1705624172816,5000.0,0.00021561,2]
[312101406,1705624178490,1500.0,0.00021518,2]
[312101407,1705624178957,295.46466614,0.00021561,2]
[312101408,1705624180843,245000.0,0.0002156,2]
[312101409,1705624183593,150.0,0.00021544,2]
[312101410,1705624222911,39848.2861,0.0002156,2]
[312101420,1705624231979,-199.24882341,0.00021604,2]
[312101421,1705624231990,-150.0,0.00021605,2]
[312101423,1705624232000,-150.0,0.00021605,2]
[312101426,1705624232012,-150.0,0.00021606,2]
[312101428,1705624232024,-150.0,0.00021608,2]
[312101429,1705624232034,-150.0,0.00021611,2]
[312101430,1705624232047,-150.0,0.00021611,2]
[312101431,1705624232058,-150.0,0.00021619,2]
[312101432,1705624232070,-150.0,0.0002162,2]
[312101433,1705624232086,-150.0,0.00021621,2]
[312101434,1705624232097,-150.0,0.00021622,2]
[312101435,1705624232108,-150.0,0.00021623,2]
[312101436,1705624232122,-150.0,0.00021623,2]
[312101437,1705624232133,-89.90117659,0.00021623,2]
[312101438,1705624232149,-60.09882341,0.00021623,2]
[312101439,1705624232160,-321.01701804,0.00021623,2]
[312101440,1705624234374,-178.97298196,0.00021623,2]
[312101441,1705624234383,-221.02701804,0.00021623,2]
[312101442,1705624234394,-1040.40298196,0.00021623,2]
[312101443,1705624234403,-2328.3545342,0.00021623,2]
[312101444,1705624234415,-1270.6254658,0.00021623,2]
[312101445,1705624234424,-755.08,0.00021624,2]
[312101446,1705624234434,-150.0,0.00021625,2]
[312101447,1705624234443,-150.0,0.00021628,2]
[312101448,1705624234453,-169.66887404,0.00021629,2]
[312101449,1705624234462,-1035.87,0.0002163,2]
[312101450,1705624234471,-150.0,0.00021631,2]
[312101451,1705624234480,-150.0,0.00021634,2]
[312101460,1705624234715,-150.0,0.00021634,2]
[312101461,1705624234724,-190.67946795,0.00021636,2]
[312101462,1705624234733,-150.0,0.00021636,2]
[312101463,1705624234743,-150.0,0.00021636,2]
[312101464,1705624234752,-150.0,0.00021636,2]
[312101465,1705624234762,-150.0,0.00021637,2]
[312101466,1705624234771,-150.0,0.00021638,2]
[312101467,1705624234781,-150.0,0.00021641,2]
[312101468,1705624234792,-150.0,0.00021642,2]
[312101469,1705624234802,-1653.99,0.00021644,2]
[312101470,1705624234811,-150.0,0.00021646,2]
[312101471,1705624234820,-150.0,0.00021646,2]
[312101472,1705624234830,-150.0,0.0002165,2]
[312101473,1705624234839,-150.0,0.0002165,2]
[312101474,1705624234849,-399.74868157,0.0002165,2]
[312101475,1705624234858,-150.0,0.00021654,2]
[312101476,1705624234867,-697.65794099,0.00021658,2]
[312101477,1705624234876,-150.0,0.00021659,2]
[312101478,1705624234885,-500.0,0.00021659,2]
[312101479,1705624234894,-205823.16307309,0.0002166,2]
[312101480,1705624234917,-418.418,0.0002166,2]
[312101481,1705624234929,-456.56200541,0.0002166,2]
[312101490,1705624238103,-139.71079293,0.0002166,2]
[312101491,1705624238138,-2410.8084,0.0002166,2]
[312101492,1705624238310,-12948.76344407,0.0002166,2]
[312101493,1705624238322,-1949.38464044,0.0002166,2]
[312101494,1705624238344,-82598.0,0.0002166,2]
[312101513,1705624240565,-1383.03198501,0.0002166,2]
[312101514,1705624240585,-301.57238638,0.0002166,2]
[312101515,1705624240599,-3050.47326885,0.0002166,2]
[312101516,1705624240638,-5776.71300195,0.0002166,2]
[312101517,1705624240765,-3194.72761637,0.0002166,2]
[312101518,1705624240780,-1780.95270064,0.0002166,2]
[312101519,1705624241354,-578.06080476,0.0002166,2]
[312101530,1705624243083,-3894.32310767,0.0002166,2]
[312101532,1705624243097,-10484.07029992,0.0002166,2]
[312101539,1705624243142,-1028.736674,0.0002166,2]
[312101541,1705624243154,-340.69835025,0.0002166,2]
[312101543,1705624243166,-40788.91163734,0.0002166,2]
[312101549,1705624243213,-13464.89204299,0.0002166,2]
[312101551,1705624243235,-5926.72949993,0.0002166,2]
[312101552,1705624243248,-4210.20539025,0.0002166,2]
[312101553,1705624243260,-64869.78355,0.0002166,2]
[312101557,1705624243752,-355.47183999,0.0002166,2]
[312101558,1705624243764,-325.39435214,0.0002166,2]
[312101559,1705624243775,-858.49651684,0.0002166,2]
[312101560,1705624243803,-988.0,0.0002166,2]
[312101561,1705624243814,-466.35169,0.0002166,2]
[312101562,1705624243825,-253.52323246,0.0002166,2]
[312101576,1705624246132,-278.19072179,0.00021659,2]
[312101577,1705624246142,-576.74715326,0.0002166,2]
[312101578,1705624246153,-859.39536,0.0002166,2]
[312101579,1705624246169,-587.2050527,0.0002166,2]
[312101580,1705624246234,-435.0,0.0002166,2]
[312101581,1705624246257,-10071.47825366,0.0002166,2]
[312101582,1705624246269,-630.48613493,0.0002166,2]
[312101583,1705624246281,-479.96318635,0.0002166,2]
[312101584,1705624246292,-2505.12168228,0.0002166,2]
[312101585,1705624246305,-457.57599352,0.0002166,2]
[312101586,1705624246333,-548.09340907,0.0002166,2]
[312101587,1705624246346,-272.14447481,0.0002166,2]
[312101588,1705624246358,-309.57867036,0.0002166,2]
[312101589,1705624246370,-4262.79617984,0.0002166,2]
[312101590,1705624246397,-8279.69532402,0.0002166,2]
[312101591,1705624246486,-3273.59832813,0.0002166,2]
[312101594,1705624262303,246039.9776,0.0002156,2]
[312101595,1705624265270,1011.07346855,0.0001865,2]
[312101596,1705624265704,100000.0,0.0002156,2]
[312101597,1705624277284,151.40119,0.00021584,3]
[312101598,1705624278272,151.40119,0.00021584,3]
[312101599,1705624279103,151.40119,0.00021584,3]
[312101600,1705624279823,151.40119,0.00021584,3]
[312101601,1705624280562,151.40119,0.00021584,3]
[312101602,1705624281304,151.40119,0.00021584,3]
[312101603,1705624282290,151.40119,0.00021584,3]
[312101604,1705624282968,151.40119,0.00021584,3]
[312101605,1705624284629,151.40119,0.00021584,3]
[312101606,1705624285423,151.40119,0.00021584,3]
[312101607,1705624286271,151.40119,0.00021584,3]
[312101608,1705624286950,151.40119,0.00021584,3]
[312101609,1705624287679,151.40119,0.00021584,3]
[312101610,1705624288359,151.40119,0.00021584,3]
[312101611,1705624289143,151.40119,0.00021584,3]
[312101612,1705624289835,151.40119,0.00021584,3]
[312101613,1705624290726,151.40119,0.00021584,3]
[312101614,1705624291275,151.40119,0.00021584,3]
[312101615,1705624292061,151.40119,0.00021584,3]
[312101616,1705624292793,151.40119,0.00021584,3]
[312101617,1705624293687,151.40119,0.00021584,3]
[312101618,1705624303701,150.0,0.00021508,2]
[312101619,1705624303802,150.0,0.00021438,2]
[312101620,1705624303874,150.0,0.00021574,2]
[312101621,1705624303949,150.0,0.00021539,2]
[312101622,1705624303992,150.0,0.00021394,2]
[312101623,1705624304049,150.0,0.00021537,2]
[312101624,1705624304094,150.0,0.00021424,2]
[312101625,1705624304165,150.0,0.00021511,2]
[312101626,1705624304223,150.0,0.00021437,2]
[312101627,1705624304272,150.0,0.00021566,2]
[312101628,1705624304318,150.0,0.00021596,2]
[312101629,1705624304367,150.0,0.00021433,2]
[312101630,1705624304420,150.0,0.00021508,2]
[312101631,1705624304489,150.0,0.00021552,2]
[312101632,1705624304556,150.0,0.00021403,2]
[312101633,1705624304605,150.0,0.00021474,2]
[312101634,1705624304655,150.0,0.00021477,2]
[312101635,1705624304697,150.0,0.00021501,2]
[312101636,1705624304746,150.0,0.00021512,2]
[312101637,1705624304790,150.0,0.00021509,2]
[312101638,1705624304841,150.0,0.00021457,2]
[312101639,1705624304937,150.0,0.00021465,2]
[312101640,1705624304976,150.0,0.00021407,2]
[312101641,1705624305005,262.19373604,0.00021547,2]
[312101642,1705624305055,150.0,0.00021421,2]
[312101643,1705624309346,157.65,0.00020747,2]
[312101644,1705624309386,3329.35169132,0.00021546,2]
[312101645,1705624311536,300.0,0.00021596,2]
[312101646,1705624317737,5000.0,0.00021561,2]
[312101647,1705624323482,345.95785864,0.00021791,29]
[312101648,1705624328426,151.40119,0.00021584,3]
[312101649,1705624329205,151.40119,0.00021584,3]
[312101650,1705624329892,151.40119,0.00021584,3]
[312101651,1705624330137,949.79,0.00020747,2]
[312101652,1705624330583,151.40119,0.00021584,3]
[312101653,1705624331276,151.40119,0.00021584,3]
[312101654,1705624332136,151.40119,0.00021584,3]
[312101655,1705624332814,151.40119,0.00021584,3]
[312101656,1705624333511,151.40119,0.00021584,3]
[312101657,1705624334398,151.40119,0.00021584,3]
[312101658,1705624334882,151.40119,0.00021584,3]
[312101659,1705624335533,151.40119,0.00021584,3]
[312101660,1705624336261,151.40119,0.00021584,3]
[312101661,1705624336929,151.40119,0.00021584,3]
[312101662,1705624337626,151.40119,0.00021584,3]
[312101663,1705624338700,151.40119,0.00021584,3]
[312101664,1705624339019,151.40119,0.00021584,3]
[312101665,1705624341097,151.40119,0.00021584,3]
[312101666,1705624341834,151.40119,0.00021584,3]
[312101667,1705624342509,151.40119,0.00021584,3]
[312101668,1705624343318,151.40119,0.00021584,3]
[312101669,1705624349228,151.40119,0.00021584,3]
[312101670,1705624349914,151.40119,0.00021584,3]
[312101671,1705624350618,151.40119,0.00021584,3]
[312101672,1705624351324,151.40119,0.00021584,3]
[312101673,1705624352041,151.40119,0.00021584,3]
[312101674,1705624352784,151.40119,0.00021584,3]
[312101675,1705624353579,151.40119,0.00021584,3]
[312101677,1705624369540,258.53158289,0.00021564,2]
[312101678,1705624376431,1000.0,0.00020635,2]
[312101679,1705624379274,245000.0,0.0002156,2]
[312101680,1705624391327,2658.2278,0.0002156,2]
[312101681,1705624423379,150.0,0.0002158,2]
[312101682,1705624423430,150.0,0.00021535,2]
[312101683,1705624439542,100000.0,0.0002156,2]
[312101684,1705624452444,4928.7792,0.0002156,2]
[312101685,1705624460212,438.28,0.00018785,2]
[312101686,1705624460564,438.28,0.00021049,2]
[312101687,1705624483588,150.0,0.00021556,2]
[312101688,1705624491582,300.0,0.00021596,2]
[312101689,1705624491632,300.0,0.00021537,2]
[312101690,1705624562188,226.21513502,0.00021564,2]
[312101691,1705624565118,1011.07346855,0.0001865,2]
[312101692,1705624572782,157841.27153842,0.0002156,2]
[312101693,1705624572808,87158.72846158,0.0002156,2]
[312101694,1705624601929,150.0,0.00020661,2]
[312101695,1705624603032,150.0,0.00021209,2]
[312101696,1705624607458,150.49609074,0.00020661,2]
[312101697,1705624619655,100000.0,0.0002156,2]
[312101698,1705624638081,340.1112,0.0002156,2]
[312101699,1705624669789,289.22,0.00020635,2]
[312101700,1705624752936,197.93824316,0.00021564,2]
[312101701,1705624771153,242488.6222,0.0002156,2]
[312101702,1705624785988,150.17,0.00020913,2]
[312101703,1705624786389,150.17,0.0002135,2]
[312101704,1705624799833,88503.7786,0.0002156,2]
[312101705,1705624829738,200.0,0.00020667,2]
[312101706,1705624842046,117715.1242,0.0002156,2]
[312101707,1705624842576,371.29,0.00020696,2]
[312101708,1705624842810,371.29,0.00020859,2]
[312101709,1705624843223,371.29,0.00021023,2]
[312101710,1705624843934,371.29,0.00021186,2]
[312101711,1705624844022,371.29,0.00021349,2]
[312101712,1705624844085,371.29,0.00021513,2]
[312101713,1705624863842,936.53,0.00020667,2]
[312101714,1705624887125,417.37,0.00018776,2]
[312101715,1705624887421,417.37,0.0002104,2]
[312101716,1705624943435,173.19596273,0.00021561,2]
[312101717,1705624963580,150.0,0.00021531,2]
[312101718,1705624963741,150.0,0.00021573,2]
[312101719,1705624963807,150.0,0.00021597,2]
[312101720,1705625023300,150.0,0.00021519,2]
[312101721,1705625023506,150.0,0.00021578,2]
[312101722,1705625073961,204.0,0.00020736,2]
[312101723,1705625083481,150.0,0.00021529,2]
[312101724,1705625083513,150.0,0.00021588,2]
[312101725,1705625083557,150.0,0.0002159,2]
[312101726,1705625135393,151.54646738,0.00021561,2]
[312101728,1705625193866,204.0,0.00020736,2]
[312101729,1705625198202,150.0,0.00021518,2]
[312101730,1705625206704,175.73,0.00020921,2]
[312101731,1705625277702,153.18,0.00020714,2]
[312101732,1705625295090,920.81,0.00020667,2]
[312101733,1705625321036,151.54646738,0.00021561,2]
[312101734,1705625340980,840.0,0.00020714,2]
[312101741,1705625396512,5547.24,0.00020714,2]
[312101747,1705625432237,-150.0,0.00021617,2]
[312101748,1705625432246,-150.0,0.0002162,2]
[312101749,1705625432256,-150.0,0.00021626,2]
[312101750,1705625432265,-1323.19,0.00021644,2]
[312101751,1705625432274,-811.72294335,0.00021645,2]
[312101752,1705625432299,-109.08705665,0.00021645,2]
[312101753,1705625432309,-150.0,0.00021648,2]
[312101754,1705625432319,-269.78779141,0.00021649,2]
[312101755,1705625432330,-519.6705,0.00021649,2]
[312101756,1705625432362,-710.54170859,0.00021649,2]
[312101757,1705625432372,-266.49912105,0.00021651,2]
[312101758,1705625432382,-642.02905131,0.00021658,5]
[312101759,1705625432394,-1398.00887038,0.00021658,5]
[312101760,1705625432406,-491.67029575,0.00021658,5]
[312101761,1705625432431,-4226.01275003,0.00021658,5]
[312101762,1705625432441,-199.80893408,0.00021659,2]
[312101763,1705625432454,-1705.07335891,0.00021659,2]
[312101764,1705625432466,-150.0,0.00021659,2]
[312101765,1705625432476,-21285.20889392,0.0002166,2]
[312101766,1705625432489,-20454.30343031,0.0002166,2]
[312101767,1705625432501,-391.73008624,0.0002166,2]
[312101768,1705625432513,-2338.16574213,0.0002166,2]
[312101769,1705625432525,-917.82255189,0.0002166,2]
[312101770,1705625432551,-4162.30159469,0.0002166,2]
[312101771,1705625432564,-142350.91058507,0.0002166,2]
[312101772,1705625432574,-500.0,0.0002166,2]
[312101773,1705625432583,-5543.70576741,0.00021661,2]
[312101901,1705625439484,204.0,0.0002109,2]
[312102343,1705625443531,-926.10854291,0.00021661,2]
[312102378,1705625443843,397.4,0.00018905,2]
[312102418,1705625444213,397.4,0.00021169,2]
[312102647,1705625446340,-1041.30392929,0.00021661,2]
[312102650,1705625446402,-635.84286283,0.00021661,2]
[312102651,1705625446413,-754.31492572,0.00021661,2]
[312102652,1705625446424,-966.16924044,0.00021661,2]
[312102665,1705625446544,-117987.34863288,0.00021661,2]
[312102689,1705625446750,-444.1546217,0.00021661,2]
[312102709,1705625454918,150.0,0.00021572,2]
[312102710,1705625454958,150.0,0.00021525,2]
[312102711,1705625455231,150.0,0.00021543,2]
[312102712,1705625455274,150.0,0.00021518,2]
[312102713,1705625455520,150.0,0.00021541,2]
[312102714,1705625455583,300.0,0.00021542,2]
[312102715,1705625458936,150.0,0.0002159,2]
[312102716,1705625459782,150.0,0.00021568,2]